Workbook

Sheet Pyramid_Game_Whole_Numbers
I2: The Pyramid Game
M4: =M6+N6 -> 1315
M6: =M8+N8 -> 651 | N6: =N8+O8 -> 664
M8: =M10+N10 -> 310 | N8: =N10+O10 -> 341 | O8: =O10+P10 -> 323
G9: 162
M10: =B11+D11 -> 131 | N10: =D11+F11 -> 179 | O10: =F11+H11 -> 162 | P10: =H11+J11 -> 161
B11: =ROUND(RAND()*(99-19)+19,0) -> 45 | D11: =ROUND(RAND()*(99-19)+19,0) -> 86 | F11: =ROUND(RAND()*(99-19)+19,0) -> 93 | H11: =ROUND(RAND()*(99-19)+19,0) -> 69 | J11: =ROUND(RAND()*(99-19)+19,0) -> 92
D19: Created by Mr. Lafferty@mathsrevision.com

Sheet Pyramid_Game_Decimals
I2: The Pyramid Game
M4: =M6+N6 -> 390.42
M6: =M8+N8 -> 194.76 | N6: =N8+O8 -> 195.66
M8: =M10+N10 -> 88.22 | N8: =N10+O10 -> 106.54 | O8: =O10+P10 -> 89.12
C9: 34.57
M10: =B11+D11 -> 34.57 | N10: =D11+F11 -> 53.65 | O10: =F11+H11 -> 52.89 | P10: =H11+J11 -> 36.23
B11: =ROUND(RAND()*(49-5)+5,2) -> 24.66 | D11: =ROUND(RAND()*(49-5)+5,2) -> 9.91 | F11: =ROUND(RAND()*(49-5)+5,2) -> 43.74 | H11: =ROUND(RAND()*(59-5)+5,2) -> 9.15 | J11: =ROUND(RAND()*(39-2)+2,2) -> 27.08
D19: Created by Mr. Lafferty@mathsrevision.com

Sheet Pyramid_Game_Integers (1)
I2: The Pyramid Game
M4: =M6+N6 -> -5
M6: =M8+N8 -> 29 | N6: =N8+O8 -> -34
M8: =M10+N10 -> 13 | N8: =N10+O10 -> 16 | O8: =O10+P10 -> -50
E9: 20
M10: =B11+D11 -> -7 | N10: =D11+F11 -> 20 | O10: =F11+H11 -> -4 | P10: =H11+J11 -> -46
B11: =ROUND((RAND()*(30-(-30))+(-30)),0) -> -14 | D11: =ROUND((RAND()*(30-(-30))+(-30)),0) -> 7 | F11: =ROUND((RAND()*(30-(-30))+(-30)),0) -> 13 | H11: =ROUND((RAND()*(30-(-30))+(-30)),0) -> -17 | J11: =ROUND((RAND()*(30-(-30))+(-30)),0) -> -29
D19: Created by Mr. Lafferty@mathsrevision.com

Sheet Pyramid_Game_Integers (2)
I2: The Pyramid Game
M4: =M6-N6 -> -107
M6: =M8-N8 -> -54 | N6: =N8-O8 -> 53
M8: =M10-N10 -> -26 | N8: =N10-O10 -> 28 | O8: =O10-P10 -> -25
E9: 9
M10: =B11-D11 -> -17 | N10: =D11-F11 -> 9 | O10: =F11-H11 -> -19 | P10: =H11-J11 -> 6
B11: =ROUND((RAND()*(30-(-30))+(-30)),0) -> -28 | D11: =ROUND((RAND()*(30-(-30))+(-30)),0) -> -11 | F11: =ROUND((RAND()*(30-(-30))+(-30)),0) -> -20 | H11: =ROUND((RAND()*(30-(-30))+(-30)),0) -> -1 | J11: =ROUND((RAND()*(30-(-30))+(-30)),0) -> -7
D19: Created by Mr. Lafferty@mathsrevision.com
